Cogmind - Beta 14 *** ADVENTURER MODE // 2024.08.17 @ 18:28:43 Player: LegoMDS Result: Destroyed by G-67 Veteran with Plasma Rifle Performance ------------- Evolutions (6) 3000 Regions Visited (17) 3400 Robots Destroyed (165) 825 Value Destroyed (6167) 6167 Prototype IDs (47) 940 Alien Tech Used (2) 400 Bonus (2196) 2196 TOTAL SCORE: 16928 Bonus ------- High Alert Combat Kills 59 Follower Combat Kills 786 Entered DSFs 500 Aligned with FarCom 300 Acquired ECA 300 Met Zhirov 300 Friendly Fire -49 Cogmind --------- Core Integrity 0/1150 Matter 290/300 Energy 89/100 System Corruption 2% Temperature Cool (0) Movement Core (50) Location -4/Factory Parts ------- > --- POWER (2) -------- (None) > --- PROPULSION (4) --- (None) > --- UTILITY (9) ------ Encrypted Comm Array Advanced Targeting Computer Improved Melee Analysis Suite Hacking Suite > --- WEAPON (4) ------- (None) > --- INVENTORY (5) ---- Advanced Heat Sink Improved Matter Compressor (300) Experimental Sensor Array Improved Kinecellerator Point Defense System Peak State ------------ > --- POWER ------------ Neutrino Core Heavy Antimatter Reactor > --- PROPULSION ------- Enhanced Armored Leg Advanced Myomer Leg Advanced Myomer Leg Advanced Myomer Leg > --- UTILITY ---------- Advanced Cooling System Medium Storage Unit Improved Matter Compressor Advanced Targeting Computer Recoil Nullifier Advanced Shield Generator Hacking Suite > --- WEAPON ----------- Heavy Flak Cannon Hypervelocity Gauss Cannon Heavy Rocket Launcher Power Sword > --- INVENTORY -------- Cryofiber Web Experimental Sensor Array Encrypted Comm Array Improved Melee Analysis Suite Improved Kinecellerator Weapon Cycler Microactuators Experimental Utility Shielding Hacking Suite Advanced System Shield [Rating: 102] Favorites ----------- Power Heavy Deuterium Engine Engine Heavy Deuterium Engine Power Core Neutrino Core Reactor Antimatter Reactor Propulsion Improved Titanium Leg Leg Improved Titanium Leg Utility Medium Storage Unit Device Cryofiber Web Storage Medium Storage Unit Processor Advanced Targeting Computer Hackware Hacking Suite Protection Experimental Utility Shielding Weapon Hypervelocity Gauss Cannon Energy Gun Small Laser Energy Cannon Guided Plasma Cannon Ballistic Gun Enhanced Autogun Ballistic Cannon Hypervelocity Gauss Cannon Launcher Heavy Rocket Launcher Slashing Weapon Power Sword Build | -11 -10 -9 -9 -9 -8 -8 -7 -6 -6 -6 -6 -5 -5 -5 -5 -4 -4 ------- Run | Yrd Mat Mat Min Exi Min Mat Fac Fac Was Fac DSF Fac Upp Upp Zhi Pro Fac Slots Evolved 12 | . . 2 . . . 2 2 2 . . . 2 . . . . 2 Power 1 | . . . . . . . 1 . . . . . . . . . . Propulsion 2 | . . . . . . 1 . . . . . 1 . . . . . Utility 7 | . . 2 . . . . 1 1 . . . 1 . . . . 2 Weapon 2 | . . . . . . 1 . 1 . . . . . . . . . Parts Attached 161 | 6 10 5 7 2 8 25 33 6 4 2 8 4 2 3 11 6 19 Power 17 | 1 1 1 . . . 3 5 . 1 . . . . 1 1 1 2 Engine 11 | 1 1 1 . . . 3 4 . . . . . . . . . 1 Core 3 | . . . . . . . 1 . . . . . . 1 . . 1 Reactor 3 | . . . . . . . . . 1 . . . . . 1 1 . Propulsion 35 | 2 2 . 3 . 1 7 7 1 1 . 3 2 . . 3 . 3 Treads . | . . . . . . . . . . . . . . . . . . Leg 35 | 2 2 . 3 . 1 7 7 1 1 . 3 2 . . 3 . 3 Wheel . | . . . . . . . . . . . . . . . . . . Hover . | . . . . . . . . . . . . . . . . . . Flight . | . . . . . . . . . . . . . . . . . . Utility 49 | 1 4 3 3 . 2 5 6 3 . 2 . 2 1 1 5 3 8 Device 31 | . 1 1 3 . 2 3 5 3 . 2 . 2 1 . 2 1 5 Storage 5 | 1 1 . . . . 1 . . . . . . . . 1 . 1 Processor 3 | . 1 . . . . 1 . . . . . . . . . 1 . Hackware 4 | . . 1 . . . . 1 . . . . . . . . . 2 Protection 6 | . 1 1 . . . . . . . . . . . 1 2 1 . Artifact . | . . . . . . . . . . . . . . . . . . Weapon 60 | 2 3 1 1 2 5 10 15 2 2 . 5 . 1 1 2 2 6 Energy Gun 6 | 2 . . . . . . . . . . . . . . . 1 3 Energy Cannon 8 | . . . . 1 1 3 2 . . . . . . . . . 1 Ballistic Gun 21 | . 2 1 1 1 3 4 6 . . . . . . . . 1 2 Ballistic Cannon 11 | . 1 . . . . . 3 1 1 . 2 . 1 1 1 . . Launcher 7 | . . . . . 1 1 3 . . . 1 . . . 1 . . Special Weapon . | . . . . . . . . . . . . . . . . . . Impact Weapon . | . . . . . . . . . . . . . . . . . . Slashing Weapon 7 | . . . . . . 2 1 1 1 . 2 . . . . . . Piercing Weapon . | . . . . . . . . . . . . . . . . . . Special Melee Weapon . | . . . . . . . . . . . . . . . . . . Unidentified Prototypes 15 | . . 1 1 . . 1 3 1 . 1 . 1 . . 6 . . Parts Lost 48 | . . . . . 1 2 6 1 2 . . . 2 1 . 11 22 Power 7 | . . . . . . . 2 . . . . . . 1 . 2 2 Propulsion 8 | . . . . . . . . 1 . . . . . . . 2 5 Utility 15 | . . . . . 1 . 3 . . . . . 1 . . 3 7 Weapon 18 | . . . . . . 2 1 . 2 . . . 1 . . 4 8 Highest Loss Streak 15 | . . . . . 1 1 3 1 2 . . . 2 1 . 7 15 To Critical Strikes 1 | . . . . . . . . 1 . . . . . . . . . Average Slot Usage (%) 95 | . 98 93 100 100 100 98 98 99 97 100 99 99 99 98 99 84 58 Engine 8 | . 14 11 11 11 11 9 13 13 11 6 6 5 5 3 . . . Reactor 1 | . . . . . . . . . 1 6 6 5 5 5 5 4 . Leg 22 | . 28 22 22 22 22 26 22 19 20 20 20 23 23 23 23 21 7 Device 13 | . . 11 11 11 11 9 14 20 20 20 20 22 22 21 17 14 3 Storage 8 | . 14 11 11 11 11 9 7 6 6 6 6 5 5 5 6 11 8 Processor 7 | . 6 11 11 11 11 9 7 6 6 6 6 5 5 5 5 5 10 Hackware 6 | . . 4 11 11 11 9 6 6 6 6 6 5 5 5 5 5 12 Ballistic Gun 8 | . 14 11 13 21 20 11 11 6 . . . . . . . . 3 Ballistic Cannon 7 | . 9 11 8 . . . 2 13 16 20 19 17 16 17 13 5 . Slashing Weapon 4 | . . . . . . 8 7 6 6 6 5 5 5 5 5 5 3 Peak Build Rating 102 | 6 10 19 28 29 29 41 55 61 64 69 65 79 85 85 102 102 78 Average Rating 49 | 3 8 13 20 25 26 37 48 58 59 63 63 75 84 83 87 87 53 On Entrance 48 | . 6 10 19 25 25 27 37 53 59 64 63 65 79 85 85 102 61 Naked Turns . | . . . . . . . . . . . . . . . . . . Heaviest Build 83 | 12 21 30 25 32 27 38 50 53 62 62 67 68 73 83 83 82 39 Greatest Support 110 | 20 20 20 26 26 28 47 60 60 60 60 60 80 80 80 110 110 45 Greatest Overweight (x) 11 | 1 1 1 1 1 1 . 1 1 1 1 1 1 . 1 1 . 11 Average Overweight (x) . | . . 1 . . . . . . . . . . . . . . . Largest Inventory Capacity 10 | 8 10 10 10 10 10 10 10 10 10 10 10 10 10 10 10 10 10 Average Capacity 9 | 7 8 10 10 10 10 10 10 10 10 10 10 10 10 10 10 10 8 Most Carried 10 | 5 8 10 10 10 10 10 10 10 10 10 10 10 10 10 10 10 7 Average Carried 8 | 2 7 7 9 9 9 9 9 7 8 10 9 9 9 10 9 9 5 Final Capacity 10 | 8 10 10 10 10 10 10 10 10 10 10 10 10 10 10 10 10 5 Final Carried 10 | 2 8 10 10 10 10 10 10 8 10 10 10 10 10 10 10 7 5 Class Distribution -------------------- 53% | Hacker-Mutant 26% | Hacker-Gunner 11% | Mutant 4% | Scavenger-Mutant Dominant Class ---------------- Mutant | -10/Materials Mutant | -9/Materials Hacker-Mutant | -9/Mines Hacker-Mutant | -9/Exiles Hacker-Mutant | -8/Mines Hacker-Mutant | -8/Materials Hacker-Mutant | -7/Factory Hacker-Gunner | -6/Factory Hacker-Gunner | -6/Waste Hacker-Gunner | -6/Factory Hacker-Gunner | -6/DSF Hacker-Gunner | -5/Factory Hacker-Gunner | -5/Upper Caves Hacker-Gunner | -5/Upper Caves Scavenger-Gunner | -5/Zhirov Hacker-Mutant | -4/Proximity Caves Hacker-Mutant | -4/Factory Resources | -11 -10 -9 -9 -9 -8 -8 -7 -6 -6 -6 -6 -5 -5 -5 -5 -4 -4 ----------- Run | Yrd Mat Mat Min Exi Min Mat Fac Fac Was Fac DSF Fac Upp Upp Zhi Pro Fac Matter Collected 5601 | 244 158 222 245 . 538 722 874 114 354 . 209 89 302 500 . 494 536 Remotely . | . . . . . . . . . . . . . . . . . . Salvage Created 5982 | . 256 275 323 . 713 1365 1186 170 . . 105 66 66 541 . 353 563 Parts 308 | . 26 14 21 . 35 70 65 4 . . 1 9 3 26 . 9 25 Haulers Intercepted 4 | . . . . . . 3 1 . . . . . . . . . . Recyclers Shooed 2 | . 1 . . . . . 1 . . . . . . . . . . Parts Field Recycled . | . . . . . . . . . . . . . . . . . . Retrieved Matter . | . . . . . . . . . . . . . . . . . . Parts Self-Destructed 42 | . . . . . . . . . . . . . 8 25 . 9 . Prevented . | . . . . . . . . . . . . . . . . . . Kills | -11 -10 -9 -9 -9 -8 -8 -7 -6 -6 -6 -6 -5 -5 -5 -5 -4 -4 ------- Run | Yrd Mat Mat Min Exi Min Mat Fac Fac Was Fac DSF Fac Upp Upp Zhi Pro Fac Combat Hostiles Destroyed 129 | . 9 6 10 . 15 22 25 4 . . . 3 2 17 . 7 9 Melee 7 | . . . . . . 1 2 . . . . . . . . 1 3 Guns 64 | . 6 3 5 . 15 16 12 1 . . . . . . . . 6 Cannons 54 | . 3 3 5 . . 5 8 3 . . . 3 2 17 . 5 . AOE 4 | . . . . . . . 3 . . . . . . . . 1 . Classes Destroyed 15 | . 3 3 2 . 1 2 2 . . . . 1 . . . 1 . Worker 5 | . . . . . 2 . 3 . . . . . . . . . . Builder 2 | . . . . . . . 2 . . . . . . . . . . Tunneler 1 | . . . . . . . . . . . . 1 . . . . . Hauler 4 | . . . . . . 3 1 . . . . . . . . . . Recycler 2 | . . . 1 . . . . . . . . . . . . . 1 Operator 7 | . . 1 . . . 3 1 1 . . . 1 . . . . . Watcher 15 | . 3 2 . . . 5 4 1 . . . . . . . . . Swarmer 30 | . 6 . 5 . . . . . . . . 3 1 7 . 4 4 Grunt 61 | . 3 3 3 . 13 9 15 3 . . . . 1 7 . . 4 Brawler 4 | . . 1 . . 2 1 . . . . . . . . . . . Duelist 1 | . . . 1 . . . . . . . . . . . . . . Sentry 19 | . . 2 1 . . 9 6 . . . . . . 1 . . . Hunter 7 | . . . . . . 3 3 1 . . . . . . . . . Programmer 6 | . . . . . . . 1 . . . . . . 2 . 2 1 Behemoth 1 | . . . . . . . . . . . . . . . . 1 . Best Kill Streak 10 | . 4 3 6 . 4 4 10 3 . . . 4 2 7 . 5 3 Combat Bots Only 7 | . 3 3 5 . 3 4 6 2 . . . 3 2 7 . 5 2 Max Kills in Single Turn 2 | . 1 1 1 . 2 2 2 1 . . . 2 1 1 . 2 1 Gunslinging 1 | . . . . . . 1 1 . . . . . . . . . . Exploded 2 | . . . . . . . 2 . . . . . . . . 1 . Melee 1 | . . . . . . 1 1 . . . . . . . . 1 1 Uniques/NPCs Destroyed . | . . . . . . . . . . . . . . . . . . Combat | -11 -10 -9 -9 -9 -8 -8 -7 -6 -6 -6 -6 -5 -5 -5 -5 -4 -4 -------- Run | Yrd Mat Mat Min Exi Min Mat Fac Fac Was Fac DSF Fac Upp Upp Zhi Pro Fac Hostile Shots Fired 1042 | . 33 21 17 . 62 115 283 18 . . 18 18 32 36 . 137 252 Missed 324 | . 8 7 5 . 15 46 111 6 . . 7 4 8 13 . 34 60 Damage Taken 9635 | . 194 110 72 . 575 871 1356 152 261 . 178 185 366 313 . 2075 2927 Core 2175 | . 28 19 18 . 132 135 256 . 14 . 12 12 43 16 . 325 1165 Absorbed by Shields 359 | . . 40 28 . 47 . . . . . . . . . . 244 . Redirected to Shielding 153 | . . . . . . . . . . . . . . . . 105 48 Ignored by Resistances 2853 | . 62 42 31 . 177 251 424 43 29 . 52 53 101 87 . 627 874 Regen/Repaired (Parts) 79 | . . . . . . . 26 . 26 . 27 . . . . . . Core Remaining (%) 76 | 100 88 . . . 57 75 63 . . . 96 . . . . 55 . Volleys Fired 426 | . 21 23 16 . 56 117 73 12 2 . 3 6 7 21 . 31 38 Largest 4 | . 2 2 2 . 2 2 2 3 3 . 4 3 3 3 . 3 3 Hottest 184 | . 60 58 60 . 120 120 120 120 145 . 184 158 175 175 . 153 146 Shots Fired 773 | . 42 46 32 . 105 155 132 36 4 . 13 18 19 63 . 48 60 Gun 470 | . 32 23 19 . 97 127 94 12 . . . . . . . 6 60 Cannon 280 | . 10 23 13 . 4 28 28 24 4 . 12 18 19 63 . 34 . Launcher 23 | . . . . . 4 . 10 . . . 1 . . . . 8 . Special . | . . . . . . . . . . . . . . . . . . Kinetic 659 | . 31 46 32 . 97 127 115 36 4 . 12 18 19 63 . 34 25 Thermal 85 | . 11 . . . 4 28 7 . . . . . . . . . 35 Explosive 23 | . . . . . 4 . 10 . . . 1 . . . . 8 . Electromagnetic 6 | . . . . . . . . . . . . . . . . 6 . Robot Hit Streak 38 | . 12 17 12 . 17 38 16 14 3 . 8 10 16 15 . 16 25 Robot Miss Streak 7 | . 2 1 1 . 3 3 6 6 2 . 2 7 6 6 . 3 2 Penetration Max 1 | . . . . . . . 1 . . . . . . . . . 1 Secondary Targets 5 | . . . . . 2 2 1 . . . . . . . . . . Max Gunslinging Chain 1 | . . . . . 1 1 1 . . . . . . . . . . Shots Hit Robots 682 | . 26 36 24 . 89 138 130 29 4 . 11 11 17 49 . 58 60 Core Hits 436 | . 16 13 15 . 36 73 114 37 . . 16 17 14 45 . 18 22 Critical Kills 19 | . . . . . 1 . . . . . . . 1 13 . 4 . Critical Parts Destroyed 14 | . . . . . . 2 . . . . . . 4 7 . 1 . Critical Strikes 50 | . . 1 1 . 1 2 4 1 . . . . 5 20 . 14 1 Burn 1 | . . . . . . . . . . . . . . . . . 1 Destroy 42 | . . 1 . . 1 2 . . . . . . 5 20 . 13 . Blast 2 | . . . 1 . . . 1 . . . . . . . . . . Sever 5 | . . . . . . . 3 1 . . . . . . . 1 . Melee Attacks 58 | . . . . . . 5 15 1 2 . . . 1 . . 25 9 Impact . | . . . . . . . . . . . . . . . . . . Slashing 58 | . . . . . . 5 15 1 2 . . . 1 . . 25 9 Piercing . | . . . . . . . . . . . . . . . . . . Sneak Attacks 2 | . . . . . . . . . . . . . . . . . 2 Combat Hostiles . | . . . . . . . . . . . . . . . . . . Follow-up Attacks . | . . . . . . . . . . . . . . . . . . Damage Inflicted 16097 | . 357 595 456 . 1786 2884 3606 659 106 . 343 283 322 1137 . 2004 1559 Guns 6997 | . 306 285 235 . 1417 1823 1588 189 . . . . . . . 56 1098 Cannons 5564 | . 51 310 221 . 146 974 787 434 106 . 255 283 322 1137 . 538 . Explosions 1563 | . . . . . 223 . 748 . . . 88 . . . . 504 . Melee 1965 | . . . . . . 87 483 36 . . . . . . . 906 453 Ramming 8 | . . . . . . . . . . . . . . . . . 8 Kinetic 10431 | . 268 595 456 . 1417 1823 2103 623 106 . 255 283 322 1137 . 538 505 Thermal 2074 | . 89 . . . 146 974 272 . . . . . . . . . 593 Explosive 1563 | . . . . . 223 . 748 . . . 88 . . . . 504 . Electromagnetic 56 | . . . . . . . . . . . . . . . . 56 . Impact . | . . . . . . . . . . . . . . . . . . Slashing 1965 | . . . . . . 87 483 36 . . . . . . . 906 453 Piercing . | . . . . . . . . . . . . . . . . . . Highest Corruption 5 | . 1 . . . . . . . 5 5 5 . . . . 2 2 Average Corruption 2 | . 1 . . . . . . . 5 5 5 . . . . 1 2 Corruption Purged . | . . . . . . . . . . . . . . . . . . Corruption Blocked . | . . . . . . . . . . . . . . . . . . Effects 30 | . 2 . . . . . . . 8 4 8 . . . . 8 . Message Errors 9 | . . . . . . . . . 4 2 1 . . . . 2 . Matter Fused 11 | . . . . . . . . . 2 1 4 . . . . 4 . Heat Flow Errors 2 | . . . . . . . . . 1 . . . . . . 1 . Energy Discharges 4 | . 1 . . . . . . . 1 . 1 . . . . 1 . Parts Fused 1 | . . . . . . . . . . 1 . . . . . . . Data Loss (minor) 1 | . 1 . . . . . . . . . . . . . . . . Misfires 1 | . . . . . . . . . . . 1 . . . . . . Alerts 1 | . . . . . . . . . . . 1 . . . . . . Overload Shots . | . . . . . . . . . . . . . . . . . . Overflow Damage 370 | . . . . . . 36 81 16 . . . 3 . . . 234 . Projectiles 101 | . . . . . . 36 36 16 . . . 3 . . . 10 . Explosions 85 | . . . . . . . 45 . . . . . . . . 40 . Melee 184 | . . . . . . . . . . . . . . . . 184 . Knockbacks 61 | . . . 4 . . . 4 14 . . . 6 14 16 . 3 . Impact . | . . . . . . . . . . . . . . . . . . Kinetic 56 | . . . 4 . . . 4 14 . . . 6 12 14 . 2 . Secondary 5 | . . . . . . . . . . . . . 2 2 . 1 . Self-Inflicted Damage 128 | . . . . . 23 . . . . . . . . . . 102 3 Shots 5 | . . . . . 1 . . . . . . . . . . 4 . Rammed 3 | . . . . . . . . . . . . . . . . . 3 Targets Rammed 4 | . . . . . . . . . . . . . . . . . 4 Kicked 1 | . . . . . . . . . . . . . . . . . 1 Crushed . | . . . . . . . . . . . . . . . . . . Highest Temperature 787 | . 132 32 44 . 328 319 152 99 . . 787 251 364 118 . 181 10 Average Temperature 90 | . 48 12 19 . 137 90 55 45 . . 299 98 176 42 . 54 10 Received Heat Transfer 3131 | . 72 50 28 . 438 405 594 27 . . . 9 144 72 . 183 1109 Effects 10 | . . . . . 3 . . . . . 4 . 3 . . . . Interference 8 | . . . . . 3 . . . . . 2 . 3 . . . . Matter Decay 1 | . . . . . . . . . . . 1 . . . . . . Short Circuit 1 | . . . . . . . . . . . 1 . . . . . . Siege Activations . | . . . . . . . . . . . . . . . . . . Robots Corrupted . | . . . . . . . . . . . . . . . . . . Combat Hostiles . | . . . . . . . . . . . . . . . . . . Parts Fried . | . . . . . . . . . . . . . . . . . . Impact Corruptions . | . . . . . . . . . . . . . . . . . . Robots Melted . | . . . . . . . . . . . . . . . . . . Combat Hostiles . | . . . . . . . . . . . . . . . . . . Parts Melted 9 | . . . . . . 4 3 . . . . . . . . . 2 Heat Transferred 4467 | . 200 . . . 320 2240 560 . . . . . . . . . 1147 Parts Sabotaged . | . . . . . . . . . . . . . . . . . . Parts Stolen . | . . . . . . . . . . . . . . . . . . Parts Stripped . | . . . . . . . . . . . . . . . . . . Power Chain Reactions . | . . . . . . . . . . . . . . . . . . Alert | -11 -10 -9 -9 -9 -8 -8 -7 -6 -6 -6 -6 -5 -5 -5 -5 -4 -4 ------- Run | Yrd Mat Mat Min Exi Min Mat Fac Fac Was Fac DSF Fac Upp Upp Zhi Pro Fac Peak Influence 519 | . 208 186 195 . 238 324 519 198 42 33 422 333 . . . . 200 Initial 191 | . . 2 . . . 64 37 71 4 25 19 191 . . . . 16 Average 142 | . 64 79 86 . 146 179 253 72 20 31 301 268 . . . . 53 Maximum Alert Level 2 | . 1 . . . 1 1 2 . . . 2 1 . . . . 1 Low Security (%) 72 | 100 95 100 100 . 74 67 34 100 100 100 17 . . . . . 97 Level 1 25 | . 4 . . . 25 32 62 . . . 40 99 . . . . 2 Level 2 1 | . . . . . . . 3 . . . 42 . . . . . . Level 3 . | . . . . . . . . . . . . . . . . . . Level 4 . | . . . . . . . . . . . . . . . . . . Level 5 . | . . . . . . . . . . . . . . . . . . High Security . | . . . . . . . . . . . . . . . . . . Max Security . | . . . . . . . . . . . . . . . . . . Sterilizations 1 | . . . . . . . . . . . 1 . . . . . . Squads Dispatched 23 | . 1 . . . . 1 13 2 . 1 2 . . . . . 3 Investigation 8 | . 1 . . . . . 2 2 . 1 . . . . . . 2 Extermination 1 | . . . . . . . 1 . . . . . . . . . . Reinforcement 8 | . . . . . . 1 4 . . . 2 . . . . . 1 Assault . | . . . . . . . . . . . . . . . . . . Garrison 6 | . . . . . . . 6 . . . . . . . . . . Intercept . | . . . . . . . . . . . . . . . . . . Searches Triggered . | . . . . . . . . . . . . . . . . . . Construction Impeded 2 | . . . . . . . 1 . . . . . . . . . 1 Haulers Reinforced 1 | . . . . . . . 1 . . . . . . . . . . Active Scanning Responses . | . . . . . . . . . . . . . . . . . . Cargo Convoy Interrupts . | . . . . . . . . . . . . . . . . . . Stealth | -11 -10 -9 -9 -9 -8 -8 -7 -6 -6 -6 -6 -5 -5 -5 -5 -4 -4 --------- Run | Yrd Mat Mat Min Exi Min Mat Fac Fac Was Fac DSF Fac Upp Upp Zhi Pro Fac Distress Signals 5 | . . 2 . . . 3 . . . . . . . . . . . Communications Jammed . | . . . . . . . . . . . . . . . . . . Distress Signals . | . . . . . . . . . . . . . . . . . . Times Spotted 193 | . 12 8 11 . 16 35 35 7 7 . 6 6 7 18 . 9 16 Peak Tracking Total 7 | . 4 3 5 . 3 4 5 2 5 . 3 4 7 4 . 6 4 Tactical Retreats 11 | . . . 2 . 1 1 . . 1 . . . 1 2 . 1 2 Traps | -11 -10 -9 -9 -9 -8 -8 -7 -6 -6 -6 -6 -5 -5 -5 -5 -4 -4 ------- Run | Yrd Mat Mat Min Exi Min Mat Fac Fac Was Fac DSF Fac Upp Upp Zhi Pro Fac Traps Triggered 7 | . 2 . . . . 1 1 1 . . 1 . . . . . 1 Indirectly . | . . . . . . . . . . . . . . . . . . Trap Hack Attempts . | . . . . . . . . . . . . . . . . . . Triggered . | . . . . . . . . . . . . . . . . . . Disarmed . | . . . . . . . . . . . . . . . . . . Reprogrammed . | . . . . . . . . . . . . . . . . . . Reused . | . . . . . . . . . . . . . . . . . . Traps Extracted . | . . . . . . . . . . . . . . . . . . Installed . | . . . . . . . . . . . . . . . . . . Triggered . | . . . . . . . . . . . . . . . . . . Machines | -11 -10 -9 -9 -9 -8 -8 -7 -6 -6 -6 -6 -5 -5 -5 -5 -4 -4 ---------- Run | Yrd Mat Mat Min Exi Min Mat Fac Fac Was Fac DSF Fac Upp Upp Zhi Pro Fac Machines Disabled 15 | . 1 . . . . . 6 . . . 2 . 2 1 . . 3 Max in Single Turn 4 | . 1 . . . . . 4 . . . . . 1 1 . . 2 Garrison Access 3 | . . . . . . 1 2 . . . . . . . . . . Machines Repaired . | . . . . . . . . . . . . . . . . . . Machines Dismantled . | . . . . . . . . . . . . . . . . . . Machines Sabotaged . | . . . . . . . . . . . . . . . . . . Overloaded Fab Kills . | . . . . . . . . . . . . . . . . . . Hacking | -11 -10 -9 -9 -9 -8 -8 -7 -6 -6 -6 -6 -5 -5 -5 -5 -4 -4 --------- Run | Yrd Mat Mat Min Exi Min Mat Fac Fac Was Fac DSF Fac Upp Upp Zhi Pro Fac Machines Accessed 24 | . . . . 1 . 5 4 2 . 2 . 1 . . 8 . 1 Terminals 4 | . . . . . . 1 1 1 . 1 . . . . . . . Fabricators 1 | . . . . . . . . . . . . . . . . . 1 Repair Stations 3 | . . . . . . 1 1 1 . . . . . . . . . Recycling Units . | . . . . . . . . . . . . . . . . . . Scanalyzers 4 | . . . . . . 2 . . . 1 . 1 . . . . . Garrison Access 3 | . . . . . . 1 2 . . . . . . . . . . Total Hacks 91 | . . . . 1 . 16 9 9 . 5 . 5 . . 44 . 2 Successful 75 | . . . . 1 . 12 5 3 . 3 . 5 . . 44 . 2 Failed 16 | . . . . . . 4 4 6 . 2 . . . . . . . Catastrophic 1 | . . . . . . . 1 . . . . . . . . . . Database Lockouts . | . . . . . . . . . . . . . . . . . . Manual 10 | . . . . 1 . 3 . 6 . . . . . . . . . Terminals 12 | . . . . . . 3 2 6 . 1 . . . . . . . Fabricators 2 | . . . . . . . . . . . . . . . . . 2 Repair Stations 10 | . . . . . . 3 4 3 . . . . . . . . . Recycling Units . | . . . . . . . . . . . . . . . . . . Scanalyzers 18 | . . . . . . 9 . . . 4 . 5 . . . . . Garrison Access 4 | . . . . . . 1 3 . . . . . . . . . . Terminal Hacks 51 | . . . . 1 . 2 1 2 . 1 . . . . 44 . . Record 32 | . . . . . . . . . . . . . . . 32 . . Part Schematic 8 | . . . . . . 2 . 2 . . . . . . 4 . . Robot Analysis 4 | . . . . . . . . . . . . . . . 4 . . Prototype ID Bank 4 | . . . . . . . . . . . . . . . 4 . . Open DSF 1 | . . . . . . . . . . 1 . . . . . . . Recall Investigation 1 | . . . . . . . 1 . . . . . . . . . . Derelict Proto ID Bank 1 | . . . . 1 . . . . . . . . . . . . . Fabricator Hacks 2 | . . . . . . . . . . . . . . . . . 2 Load Schematic 1 | . . . . . . . . . . . . . . . . . 1 Build 1 | . . . . . . . . . . . . . . . . . 1 Repair Station Hacks 4 | . . . . . . 1 2 1 . . . . . . . . . Scan Component 3 | . . . . . . 1 1 1 . . . . . . . . . Repair 1 | . . . . . . . 1 . . . . . . . . . . Recycling Unit Hacks . | . . . . . . . . . . . . . . . . . . Scanalyzer 15 | . . . . . . 8 . . . 2 . 5 . . . . . Insert Component 6 | . . . . . . 3 . . . 1 . 2 . . . . . Analyze 9 | . . . . . . 5 . . . 1 . 3 . . . . . Garrison Access Hacks 3 | . . . . . . 1 2 . . . . . . . . . . Seal Access 3 | . . . . . . 1 2 . . . . . . . . . . Unauthorized Hacks . | . . . . . . . . . . . . . . . . . . Terminals . | . . . . . . . . . . . . . . . . . . Fabricators . | . . . . . . . . . . . . . . . . . . Repair Stations . | . . . . . . . . . . . . . . . . . . Recycling Units . | . . . . . . . . . . . . . . . . . . Scanalyzers . | . . . . . . . . . . . . . . . . . . Garrison Access . | . . . . . . . . . . . . . . . . . . Data Cores Recovered 6 | . . 1 . . . 2 . 1 . . . 2 . . . . . Used . | . . . . . . . . . . . . . . . . . . Hacking Detections 11 | . . . . . . 4 2 2 . 1 . 1 . . . . 1 Full Trace Events 6 | . . . . . . . 2 2 . 1 . . . . . . 1 Feedback Events . | . . . . . . . . . . . . . . . . . . Feedback Blocked . | . . . . . . . . . . . . . . . . . . Robot Schematics Acquired . | . . . . . . . . . . . . . . . . . . Robots Built . | . . . . . . . . . . . . . . . . . . Authchips . | . . . . . . . . . . . . . . . . . . Time . | . . . . . . . . . . . . . . . . . . Total Robot Build Rating . | . . . . . . . . . . . . . . . . . . Part Schematics Acquired 14 | . . . . . . 5 . 2 . 1 . 2 . . 4 . . Parts Built . | . . . . . . . . . . . . . . . . . . Authchips . | . . . . . . . . . . . . . . . . . . Time 84 | . . . . . . . . . . . . . . . . . 84 Total Part Build Rating . | . . . . . . . . . . . . . . . . . . Parts Repaired 1 | . . . . . . . 1 . . . . . . . . . . Time 19 | . . . . . . . 19 . . . . . . . . . . Parts Recycled . | . . . . . . . . . . . . . . . . . . Recycled Matter . | . . . . . . . . . . . . . . . . . . Retrieved Matter . | . . . . . . . . . . . . . . . . . . Retrieved Components . | . . . . . . . . . . . . . . . . . . Parts Scanalyzed 6 | . . . . . . 3 . . . 1 . 2 . . . . . Part Schematics Acquired 6 | . . . . . . 3 . . . 1 . 2 . . . . . Parts Damaged 1 | . . . . . . 1 . . . . . . . . . . . Bothacking | -11 -10 -9 -9 -9 -8 -8 -7 -6 -6 -6 -6 -5 -5 -5 -5 -4 -4 ------------ Run | Yrd Mat Mat Min Exi Min Mat Fac Fac Was Fac DSF Fac Upp Upp Zhi Pro Fac Used RIF Installer . | . . . . . . . . . . . . . . . . . . Robots Hacked . | . . . . . . . . . . . . . . . . . . Non-combat . | . . . . . . . . . . . . . . . . . . Combat . | . . . . . . . . . . . . . . . . . . Robot Hacks Applied . | . . . . . . . . . . . . . . . . . . Relay Couplers Released . | . . . . . . . . . . . . . . . . . . Fabnet Peak Effective % . | . . . . . . . . . . . . . . . . . . Robots Rewired . | . . . . . . . . . . . . . . . . . . Allies Hacked 1 | . . . . . . . . . . . . . . 1 . . . Hacks Repelled . | . . . . . . . . . . . . . . . . . . Allies | -11 -10 -9 -9 -9 -8 -8 -7 -6 -6 -6 -6 -5 -5 -5 -5 -4 -4 -------- Run | Yrd Mat Mat Min Exi Min Mat Fac Fac Was Fac DSF Fac Upp Upp Zhi Pro Fac Total Allies 18 | . . . . . . . . . 18 . . . . . . . . Largest Group 18 | . . . . . . . . . 18 11 11 4 4 2 . . . Highest-Rated Group 656 | . . . . . . . . . 656 468 468 184 184 92 . . . Highest-Rated Ally 50 | . . . . . . . . . 50 50 50 46 46 46 . . . Warlord Squad Rendezvous 1 | . . . . . . . . . . . . . . . . . 1 Ranger 1 | . . . . . . . . . . . . . . . . . 1 Total Orders . | . . . . . . . . . . . . . . . . . . Ally Attacks 244 | . . . . . . . . . 148 . 53 13 17 13 . . . Total Damage 8921 | . . . . . . . . . 6350 . 1697 168 517 189 . . . Kills 34 | . . . . . . . . . 13 . 12 2 6 1 . . . Allies Corrupted 1 | . . . . . . . . . . . . . . 1 . . . Allies Melted . | . . . . . . . . . . . . . . . . . . Intel | -11 -10 -9 -9 -9 -8 -8 -7 -6 -6 -6 -6 -5 -5 -5 -5 -4 -4 ------- Run | Yrd Mat Mat Min Exi Min Mat Fac Fac Was Fac DSF Fac Upp Upp Zhi Pro Fac Robot Analysis Total 4 | . . . . . . . . . . . . . . . 4 . . Derelict Logs Recovered 6 | . . . 2 . . . . . . . . . 1 1 . 2 . Drone Launches . | . . . . . . . . . . . . . . . . . . Drone Recoveries . | . . . . . . . . . . . . . . . . . . Exploration | -11 -10 -9 -9 -9 -8 -8 -7 -6 -6 -6 -6 -5 -5 -5 -5 -4 -4 ------------- Run | Yrd Mat Mat Min Exi Min Mat Fac Fac Was Fac DSF Fac Upp Upp Zhi Pro Fac Turns Passed 12358 | 55 1083 507 807 354 654 1710 1602 724 395 136 270 373 644 636 389 1415 604 Spaces Moved 7588 | 39 691 222 452 284 383 1126 988 214 248 68 132 249 484 451 243 1041 273 Core 95 | 10 . . . . . . . . . . . . . . . . 85 Treads . | . . . . . . . . . . . . . . . . . . Legs 7493 | 29 691 222 452 284 383 1126 988 214 248 68 132 249 484 451 243 1041 188 Wheels . | . . . . . . . . . . . . . . . . . . Hover . | . . . . . . . . . . . . . . . . . . Flight . | . . . . . . . . . . . . . . . . . . Fastest Speed 50 | 50 120 190 120 120 120 110 123 130 130 126 126 122 122 122 120 120 50 Average Speed 133 | 107 141 190 162 123 124 118 128 132 135 193 185 137 122 127 148 120 137 Slowest Speed 600 | 120 190 190 190 190 190 123 200 200 200 196 196 193 122 192 192 120 600 Overloaded Moves . | . . . . . . . . . . . . . . . . . . Propulsion Burnouts . | . . . . . . . . . . . . . . . . . . Robots Hopped . | . . . . . . . . . . . . . . . . . . Cave-ins Triggered 1 | . . . . . . . . . 1 . . . . . . . . Teleports 1 | . . . . . . . . . . . . . . . 1 . . Exploration Rate (%) 53 | 4 94 27 79 71 74 89 31 8 90 2 95 8 60 55 62 98 7 Regions Visited 17 Branch Regions 7 Pre-discovered Areas 3 | . . . 1 . . . . . . . . . 2 . . . . Known Exits Taken 2 | . . . . . . 1 . . . 1 . . . . . . . Unknown Exits Taken 12 | 1 1 1 1 1 1 . 1 . . . . 1 1 1 1 1 . Scrap Searched 8 | . . . 2 . 2 . . . . . . . 2 1 . 1 . Spaces Dug 9 | . . . . . . . . . 2 . . . . . . 7 . Terrain Destroyed 216 | . . . . . 54 . 90 2 2 . 6 . . . . 62 . Melee 9 | . . . . . . . . . 2 . . . . . . 7 . Projectile 4 | . . . . . . . 2 2 . . . . . . . . . AOE 203 | . . . . . 54 . 88 . . . 6 . . . . 55 . Terrain Rammed . | . . . . . . . . . . . . . . . . . . Walls Destroyed . | . . . . . . . . . . . . . . . . . . Machines Disabled . | . . . . . . . . . . . . . . . . . . Actions | -11 -10 -9 -9 -9 -8 -8 -7 -6 -6 -6 -6 -5 -5 -5 -5 -4 -4 --------- Run | Yrd Mat Mat Min Exi Min Mat Fac Fac Was Fac DSF Fac Upp Upp Zhi Pro Fac Total 9163 | 52 760 267 502 287 488 1365 1185 633 304 72 151 269 523 475 270 1121 439 Wait 728 | . 8 4 13 . 33 56 41 396 43 2 1 6 26 . . 17 82 Move 7572 | 38 690 221 451 283 382 1125 987 214 247 67 131 248 483 450 242 1040 273 Hop . | . . . . . . . . . . . . . . . . . . Pick Up 115 | 8 17 9 6 1 4 18 19 2 4 . 2 3 3 . 6 2 11 Fast Attach 22 | . 1 . . . 1 1 6 . . 1 2 . . 2 3 1 4 Attach 58 | 6 2 2 . . 1 5 11 4 2 . . 2 2 . 2 5 14 Detach 2 | . . . . . . . . 1 . . . . . . . . 1 Swap 83 | . 7 3 7 2 6 19 16 2 2 1 6 2 . 1 8 . 1 Drop 95 | . 14 5 9 1 5 19 17 1 2 1 6 2 1 1 9 . 2 Fire 426 | . 21 23 16 . 56 117 73 12 2 . 3 6 7 21 . 31 38 Melee 58 | . . . . . . 5 15 1 2 . . . 1 . . 25 9 Ram 3 | . . . . . . . . . . . . . . . . . 3 Kick 1 | . . . . . . . . . . . . . . . . . 1 Crush . | . . . . . . . . . . . . . . . . . . Escape Stasis . | . . . . . . . . . . . . . . . . . . Rewire . | . . . . . . . . . . . . . . . . . . Trap . | . . . . . . . . . . . . . . . . . . Miscellaneous . | . . . . . . . . . . . . . . . . . . Route ------- -11/Scrapyard -10/Materials (discovered 3 exits: [*Mat x3]) -9/Materials -9/Mines (discovered 2 exits: *Mat / *Exi) -9/Exiles -8/Mines -8/Materials (discovered 2 exits: *Fac x2) -7/Factory -6/Factory -6/Waste -6/Factory -6/DSF -5/Factory -5/Upper Caves -5/Upper Caves (discovered 2 exits: *Fac / *Zhi) -5/Zhirov -4/Proximity Caves -4/Factory (discovered 1 exit: Arm) History --------- Turn | Location | Event 19 | -11/Scrapyard | Discovered new exit (range 15) 56 | -11/Scrapyard | Entered Materials 201 | -10/Materials | Discovered new exit (range 16) 319 | -10/Materials | Build established: Mutant 570 | -10/Materials | Discovered new exit (range 15) 981 | -10/Materials | Discovered new exit (range 11) 1139 | -10/Materials | Entered another Materials area 1139 | -9/Materials | Evolved 2 slots: Utility x2 1586 | -9/Materials | Discovered new exit (range 10) 1646 | -9/Materials | Entered Mines 1706 | -9/Mines | Learned location of Storage (-7) 1734 | -9/Mines | Joined a pair of Derelicts in attacking an 0b10 outpost 1759 | -9/Mines | Build established: Hacker-Mutant 1788 | -9/Mines | Learned 2 Materials zone layouts 1963 | -9/Mines | Found a damaged Exp. Sensor Array with a note attached 1969 | -9/Mines | Found Prototype Device 2235 | -9/Mines | Identified Exp. Sensor Array 2305 | -9/Mines | Discovered new exit (range 3) 2448 | -9/Mines | Deemed a non-threat by the Exiles lab entrance 2448 | -9/Mines | Discovered new exit (range 5) 2453 | -9/Mines | Entered Exiles 2483 | -9/Exiles | Met 8R-AWN 2505 | -9/Exiles | Met EX-HEX 2547 | -9/Exiles | Met EX-BIN 2560 | -9/Exiles | Aligned with FarCom system 2561 | -9/Exiles | Given EX-Vault access code 2589 | -9/Exiles | Opened EX-Vault 2596 | -9/Exiles | Found Gui. Plasma Cannon 2626 | -9/Exiles | Warned to stay clear of 0b10 Research branches 2666 | -9/Exiles | Met EX-DEC 2797 | -9/Exiles | Discovered new exit (range 10) 2807 | -9/Exiles | Left Exiles lab with Gui. Plasma Cannon 2807 | -9/Exiles | Entered Mines 3431 | -8/Mines | Discovered new exit (range 8) 3461 | -8/Mines | Entered Materials 3461 | -8/Materials | Evolved 2 slots: Propulsion x1, Weapon x1 3462 | -8/Materials | Identified exit to Factory 5165 | -8/Materials | Build established: Scavenger-Mutant 5167 | -8/Materials | Discovered exit to Factory (range 4) 5171 | -8/Materials | Entered Factory 5171 | -7/Factory | Evolved 2 slots: Power x1, Utility x1 5501 | -7/Factory | Build established: Hacker-Mutant 5516 | -7/Factory | Garrison activated, responded to threat 5717 | -7/Factory | Garrison activated, responded to threat 5877 | -7/Factory | Lost 3 parts (2p1w) 6133 | -7/Factory | Repaired Cryofiber Web 6315 | -7/Factory | Garrison activated, responded to threat 6582 | -7/Factory | Discovered new exit (range 9) 6773 | -7/Factory | Entered another Factory area 6773 | -6/Factory | Evolved 2 slots: Utility x1, Weapon x1 7102 | -6/Factory | Build established: Hacker-Gunner 7497 | -6/Factory | Sucked down chute 7497 | -6/Factory | Entered Waste 7523 | -6/Waste | Spotted C-40 Crusher 7528 | -6/Waste | Spotted C-40 Crusher 7541 | -6/Waste | Crushed by falling debris 7544 | -6/Waste | Spotted C-40 Crusher 7564 | -6/Waste | Spotted C-40 Crusher 7583 | -6/Waste | Spotted C-40 Crusher 7602 | -6/Waste | Spotted C-40 Crusher 7627 | -6/Waste | Found Prototype Device 7637 | -6/Waste | Discovered new exit (range 13) 7650 | -6/Waste | Warlord forces began an assault 7660 | -6/Waste | Allies destroyed C-40 Crusher 7665 | -6/Waste | Allies destroyed C-40 Crusher 7669 | -6/Waste | Allies destroyed C-40 Crusher 7682 | -6/Waste | Allies destroyed C-40 Crusher 7713 | -6/Waste | Lost 5 allies 7816 | -6/Waste | Allies destroyed C-40 Crusher 7873 | -6/Waste | Allies destroyed C-40 Crusher 7892 | -6/Waste | Entered Factory 7892 | -6/Factory | Accompanied by 11 allies 7977 | -6/Factory | Identified Exp. Focal Shield 8022 | -6/Factory | Identified exit to DSF 8028 | -6/Factory | Entered DSF 8028 | -6/DSF | Accompanied by 11 allies 8040 | -6/DSF | Additional patrols routed to DSF 8070 | -6/DSF | Discovered new exit (range 16) 8190 | -6/DSF | Sterilization system engaged 8210 | -6/DSF | Ambient heat levels rising (+10) 8225 | -6/DSF | Ambient heat levels rising (+10) 8240 | -6/DSF | Ambient heat levels rising (+10) 8255 | -6/DSF | Ambient heat levels rising (+10) 8270 | -6/DSF | Ambient heat levels rising (+10) 8285 | -6/DSF | Ambient heat levels rising (+10) 8298 | -6/DSF | Entered Factory 8298 | -5/Factory | Accompanied by 4 allies 8298 | -5/Factory | Evolved 2 slots: Propulsion x1, Utility x1 8648 | -5/Factory | Discovered new exit (range 8) 8671 | -5/Factory | Entered Upper Caves 8671 | -5/Upper Caves | Accompanied by 4 allies 8733 | -5/Upper Caves | Attracted the attention of an 0b10 base 8768 | -5/Upper Caves | Learned location of Armory (-4) 8836 | -5/Upper Caves | Met a Warlord Commander 8837 | -5/Upper Caves | Learned location of Warlord (-4) 8838 | -5/Upper Caves | Warlord Commander delivered Encrypted Comm Array 8842 | -5/Upper Caves | Found Encrypted Comm Array 9217 | -5/Upper Caves | Discovered new exit (range 10) 9315 | -5/Upper Caves | Entered another Upper Caves area 9315 | -5/Upper Caves | Accompanied by 2 allies 9410 | -5/Upper Caves | Discovered new exit (range 5) 9704 | -5/Upper Caves | Attracted the attention of an 0b10 base 9744 | -5/Upper Caves | Destroyed 7 combat bots 9866 | -5/Upper Caves | Learned location of 1 exit from Factory 9873 | -5/Upper Caves | Attracted the attention of an 0b10 checkpoint 9916 | -5/Upper Caves | Discovered new exit (range 15) 9951 | -5/Upper Caves | Entered Zhirov 9951 | -5/Zhirov | Discovered new exit (range 4) 9994 | -5/Zhirov | Met Zhirov 10092 | -5/Zhirov | Zhirov requested help retrieving the SGEMP Prototype 10135 | -5/Zhirov | Found Alien Artifact 10136 | -5/Zhirov | Identified Integrated Dissipator 10136 | -5/Zhirov | Installed Integrated Dissipator, increased core heat dissipation (+20) 10167 | -5/Zhirov | Found Alien Artifact 10168 | -5/Zhirov | Identified Transdimensional Reconstructor 10168 | -5/Zhirov | Warped through subspace 10189 | -5/Zhirov | Build established: Scavenger-Gunner 10340 | -5/Zhirov | Entered Proximity Caves 10833 | -4/Proximity Caves | Build established: Hacker-Mutant 10870 | -4/Proximity Caves | Spotted B-86 Titan 10938 | -4/Proximity Caves | Lost 3 parts (1p1u1w) 11586 | -4/Proximity Caves | Destroyed B-86 Titan 11602 | -4/Proximity Caves | Lost 7 parts (1p2n2u2w) 11676 | -4/Proximity Caves | Discovered new exit (range 11) 11715 | -4/Proximity Caves | Learned Research stockpile data 11755 | -4/Proximity Caves | Entered Factory 11755 | -4/Factory | Evolved 2 slots: Utility x2 11756 | -4/Factory | Identified exit to Armory 12117 | -4/Factory | Core integrity fell below 50% 12176 | -4/Factory | Lost 15 parts (1p2n6u6w) 12272 | -4/Factory | Core integrity fell below 20% 12287 | -4/Factory | Joined by Warlord Ranger squad 12290 | -4/Factory | Lost 3 parts (1p1n1w) 12359 | -4/Factory | Lost 3 parts (1n1u1w) 12359 | -4/Factory | Destroyed by G-67 Veteran with Plasma Rifle Last Messages --------------- Acquired 75 matter. Hacking Suite destroyed. U-05 Engineer builds a Wall. Acquired 4 matter. Kicked U-05 Engineer. ALERT: Construction progress impeded, dispatching reinforcements to local area. Acquired 4 matter. Myomer Leg destroyed. Slammed into U-05 Engineer. Slammed into K-01 Serf. Destabilizing: System interference. Encrypted Comm Array temporarily disabled. Adv. Targeting Computer temporarily disabled. Encrypted Comm Array temporarily disabled. Slammed into K-01 Serf. Destabilizing: System corrupted (+2). Acquired Imp. Shock Absorption System. Dropped Imp. Shock Absorption System. [Achievement: This Is Interesting...] Map ----- +----------------------------------------------------+ | ?????????????????????????????????????????????????? | | ?????????????????????????????????????????????????? | | ?????????????????????????????????????????????????? | | ?????????????????????????????????????????????????? | | ?????????????????????????????????????????????????? | | ?????????????????????????????????????????????????? | | ?????????????????????????????????????????????????? | | ?????????????????????????????????????????????????? | | ?????????????????????????????????????????????????? | | ?????????????????????????????????????????????????? | | ??????????????????????? ??????????????????????? | | ????????????????????? ??????????????????????? | | ????????????????????# ?????????????????????? | | ????????????????????# ?????????????????????? | | ????????????????????# = ?????????????????????? | | ????????????????????# ????????????????????? | | ????????????????????# ? #???????????????? | | ????????????????????# #???????????????? | | ????????????????????# #???????????????? | | ????????????????????# #???????????????? | | ????????????????????# #???????????????? | | ????????????????????# ""T"" #???????????????? | | ????????????????????+ """"" #???????????????? | | ????????????????????? #???????????????? | | ??????????????????????? #???????????????? | | ????????????????????#####@## #???????????????? | | ????????????????????# # #???????????????? | | ????????????????????# # ##+###??????????? | | ????????????????????# """"gg #####??????? | | ????????????????????# """" # ?????? | | ????????????????????# """" #g ##?????????? | | ????????????????????# """" # ######??????????? | | ????????????????????# # #####???????????????? | | ????????????????????# #%#???????????????????? | | ????????????????????# #%################????? | | ????????????????????# # ?? | | ????????????????????# # ?? | | ????????????????????# !! # ?? | | ????????????????????# !! # ################ ???? | | ????????????????????########g#????# #????? | | ???????????????????????##### #????# #????? | | ####???????????????????# #????# #????? | | #???????????????????# #????# ! #????? | | #???????????????????# #????# % #????? | | #??##########???????# ###### ! #????? | | #??? #???????# % %" #????? | | #???"""" #?####??# ###### #????? | | #???"""" ###T #### ######/###+#####????? | | #??#"""" ## ???????? | | #??#"""" ## % ??????? | +----------------------------------------------------+ Best States ------------- Heat Dissipation 91 Energy Generation 39 Energy Capacity 555 Matter Stores 541 Matter Capacity 600 Sight Range 16 Terrain Scan Density 10 Base Temperature (-) 100 Armor Coverage 225 Resistance: KI 50 Resistance: TH 20 Resistance: EX 20 Resistance: EM 20 Resistance: I 20 Resistance: S 20 Resistance: P 20 Utility Shielding 90 Weapon Cycling 15 Melee Speed Boost 20 Evasion (%) 63 Targeting Accuracy 8 Melee Accuracy 6 Recoil Reduction 6 Kinecelleration 40 Offensive Hacking 30 Defensive Hacking 14 Item Schematics ----------------- Exp. Sensor Array | -8/Materials | Scanalyzed Cryofiber Web | -8/Materials | Scanalyzed Hacking Suite | -8/Materials | Scanalyzed Scythe | -8/Materials | Hacked Titanium Leg | -8/Materials | Hacked Imp. Titanium Leg | -6/Factory | Hacked Adv. Melee Analysis Suite | -6/Factory | Hacked Imp. Kinecellerator | -6/Factory | Scanalyzed Hyp. Gauss Cannon | -5/Factory | Scanalyzed Hvy. Missile Launcher | -5/Factory | Scanalyzed Assault Drone Bay | -5/Zhirov | Free Exp. Heat Sink | -5/Zhirov | Free Exp. Optical Array | -5/Zhirov | Free Imp. Arc Thrower | -5/Zhirov | Free Robot Schematics ------------------ None Fabricated ------------ Nothing Alien Tech Used ----------------- Integrated Dissipator Transdimensional Reconstructor Achievements -------------- Alien Tech Armchair Analyst Subspace Traveler The Science Guy This Is Interesting... Challenges ------------ None Game ------ Seed AssaultEncryptedCapacitor Manual? 0 Play Time 01:47:27 Cumulative 25.6 hours Start 2024.08.17 @ 16:39:44 End 2024.08.17 @ 18:28:43 Sessions 1 Manual Loads 0 Difficulty Adventurer Special Mode None Game No. 30 Rogue 13 Adventurer 17 Explorer 0 Win Type - Total 0 Types 0/0/0/0/0/0/0/0/0 Lore% 26 Gallery% 33 Achievement% 30 Wizard Run 0 Options --------- Layout 1 ASCII 0 Keyboard 0 Movement Mouse Keybinds 0 Fullscreen 1 Font 24/Smallcaps Map View 50x35 Zoom Use 0% Tactical HUD 0 Map Filters NONE Filters NONE Steam 1 RUN: d168a18f-b41f-4618-b692-3c0732bc56a7